DepartmentFamily,Entity,Date,ExpenseType,ExpenseArea,Supplier,Transaction Number,Amount,Description,Supplier Type,VATRegistrationNumber
BEIS,The Insolvency Service,02/02/2023,Training,Legal Services Division,CILEX,300043518,"3,525.00",Training,,904444834
BEIS,The Insolvency Service,03/02/2023,Other Costs,Official Receiver Services,Royal Mail (Redirection),300043532,"10,152.00",Finance - OR Case Disbursements,Large,
BEIS,The Insolvency Service,03/02/2023,ICT,Digital Technology Services,Trustmarque Solutions Ltd,300043452,"11,601.20",IT - Run,Large,727348615
BEIS,The Insolvency Service,03/02/2023,Legal - Costs of Criminal Prosecutions and Advice,Legal Services Division,Warwickshire Police & Crime Commissioner,300043559,642.00,Costs of Criminal Prosecutions and Advice,,
BEIS,The Insolvency Service,03/02/2023,Legal - Costs of Civil Litigation Disqualifications,Legal Services Division,23 Essex Street,300043557,840.00,Civil Litigation Disqualifications Counsel Fees,,524199244
BEIS,The Insolvency Service,03/02/2023,Staff Costs - Perms,Shared Contracts,Edenred (UK Group) Limited,300043521,"65,475.00",Staff Costs - Perms,,
BEIS,The Insolvency Service,03/02/2023,Staff Costs - Non-Perms,Digital Technology Services,SmartSourcing,300043478,"18,772.61",Agency Staff & Contractor Costs,SME,788507869
BEIS,The Insolvency Service,03/02/2023,Legal - Costs of Criminal Prosecutions and Advice,Legal Services Division,2 Harcourt Buildings,300043552,"1,593.00",Costs of Criminal Prosecutions and Advice,SME,946426795
BEIS,The Insolvency Service,03/02/2023,ICT,Projects,Advanced 365 Limited,300043551,"1,157.76",IT - Run,Large,927547983
BEIS,The Insolvency Service,03/02/2023,ICT,Digital Technology Services,Advanced 365 Limited,300043565,"5,385.94",IT - Run,Large,927547983
BEIS,The Insolvency Service,03/02/2023,ICT,Digital Technology Services,Charterhouse Voice and Data Limited,300043527,"25,005.53",Telephones - Charges,,311389028
BEIS,The Insolvency Service,03/02/2023,ICT,Projects,Nomensa Limited,300043555,"50,500.00",IT - Transform,Large,771727411
BEIS,The Insolvency Service,03/02/2023,Staff Costs - Non-Perms,Investigations & Enforcement Services,Red Snapper Recruitment,300043523,"1,175.22",Agency Staff & Contractor Costs,SME,835435718
BEIS,The Insolvency Service,03/02/2023,Staff Costs - Non-Perms,Investigations & Enforcement Services,Red Snapper Recruitment,300043524,"1,958.70",Agency Staff & Contractor Costs,SME,835435718
BEIS,The Insolvency Service,03/02/2023,Staff Costs - Non-Perms,Investigations & Enforcement Services,Red Snapper Recruitment,300043526,"1,958.70",Agency Staff & Contractor Costs,SME,835435718
BEIS,The Insolvency Service,03/02/2023,Staff Costs - Non-Perms,Investigations & Enforcement Services,Red Snapper Recruitment,300043528,"1,958.70",Agency Staff & Contractor Costs,SME,835435718
BEIS,The Insolvency Service,03/02/2023,Staff Costs - Non-Perms,Investigations & Enforcement Services,Red Snapper Recruitment,300043530,"1,958.70",Agency Staff & Contractor Costs,SME,835435718
BEIS,The Insolvency Service,03/02/2023,Other Costs,Official Receiver Services,Controlaccount PLC,300043570,684.00,Financial Searches,SME,945758964
BEIS,The Insolvency Service,03/02/2023,Other Costs,Official Receiver Services,Controlaccount PLC,300043571,"4,368.00",Financial Searches,SME,945758964
BEIS,The Insolvency Service,03/02/2023,Other Costs,Official Receiver Services,Controlaccount PLC,300043572,"1,068.00",Financial Searches,SME,945758964
BEIS,The Insolvency Service,03/02/2023,Other Costs,Official Receiver Services,Controlaccount PLC,300043575,834.00,Financial Searches,SME,945758964
BEIS,The Insolvency Service,03/02/2023,Other Costs,Official Receiver Services,Controlaccount PLC,300043577,"1,296.00",Financial Searches,SME,945758964
BEIS,The Insolvency Service,03/02/2023,Other Costs,Official Receiver Services,Controlaccount PLC,300043578,864.00,Financial Searches,SME,945758964
BEIS,The Insolvency Service,03/02/2023,Other Costs,Official Receiver Services,Controlaccount PLC,300043579,796.68,Financial Searches,SME,945758964
BEIS,The Insolvency Service,03/02/2023,Estates - Property,Finance & Commercial,Portal Chatham LLP,300043569,900.00,Landlord Service Charge,SME,933428619
BEIS,The Insolvency Service,03/02/2023,Staff Costs - Non-Perms,Finance & Commercial,Spinwell Global Ltd,300043517,"3,282.00",Agency Staff & Contractor Costs,,257189569
BEIS,The Insolvency Service,03/02/2023,Legal - Costs of Civil Litigation Disqualifications,Legal Services Division,Landmark Chambers,300043558,640.00,Civil Litigation Disqualifications Counsel Fees,,219827776
BEIS,The Insolvency Service,03/02/2023,Staff Costs - Non-Perms,Digital Technology Services,Talent International (UK) Ltd,300043539,"12,936.00",Agency Staff & Contractor Costs,,176415692
BEIS,The Insolvency Service,03/02/2023,Staff Costs - Non-Perms,Digital Technology Services,Talent International (UK) Ltd,300043542,"9,895.20",Agency Staff & Contractor Costs,,176415692
BEIS,The Insolvency Service,06/02/2023,Other Costs,Official Receiver Services,Insolvency Service,300043562,580.00,"Fruitless, ex-Gratia and Compensation Payment",Public Sector,
BEIS,The Insolvency Service,06/02/2023,Other Costs,Official Receiver Services,Insolvency Service,300043563,580.00,"Fruitless, ex-Gratia and Compensation Payment",Public Sector,
BEIS,The Insolvency Service,06/02/2023,Other Costs,Official Receiver Services,Insolvency Service,300043564,580.00,"Fruitless, ex-Gratia and Compensation Payment",Public Sector,
BEIS,The Insolvency Service,06/02/2023,"Printing, Stationary, Postage & Confidential Waste",Shared Contracts,Restore Datashred (Data Solutions 2016 Ltd T/A Restore Data),300043592,"1,490.12",Confidential Waste,Large,240193143
BEIS,The Insolvency Service,06/02/2023,ICT,Business Service Division,Syntec Ltd,300043604,653.09,Telephones - Charges,SME,264618586
BEIS,The Insolvency Service,06/02/2023,Training,Chief Executive Office,KPMG LLP,300043529,532.00,Training,Large,791788859
BEIS,The Insolvency Service,06/02/2023,ICT,Digital Technology Services,Geoff Smith Associates Ltd,300043531,"17,917.92",IT - Run,SME,813047166
BEIS,The Insolvency Service,06/02/2023,HR,People & Communications,Health Partners Ltd,300043537,"2,592.45",Staff Welfare,,806426440
BEIS,The Insolvency Service,06/02/2023,ICT,Projects,Netcompany UK Ltd,300043561,"1,947.00",IT - Run,Large,171809009
BEIS,The Insolvency Service,06/02/2023,ICT,Projects,Netcompany UK Ltd,300043590,"2,502.00",IT - Run,Large,171809009
BEIS,The Insolvency Service,06/02/2023,Staff Costs - Non-Perms,Projects,SmartSourcing,300043580,"20,244.67",Agency Staff & Contractor Costs,SME,788507869
BEIS,The Insolvency Service,06/02/2023,Staff Costs - Non-Perms,Chief Executive Office,SmartSourcing,300043581,"19,866.67",Agency Staff & Contractor Costs,SME,788507869
BEIS,The Insolvency Service,06/02/2023,Staff Costs - Non-Perms,Projects,SmartSourcing,300043585,"11,525.47",Agency Staff & Contractor Costs,SME,788507869
BEIS,The Insolvency Service,06/02/2023,Staff Costs - Non-Perms,Projects,SmartSourcing,300043588,"18,354.67",Agency Staff & Contractor Costs,SME,788507869
BEIS,The Insolvency Service,06/02/2023,Staff Costs - Non-Perms,Digital Technology Services,SmartSourcing,300043591,"25,048.80",Agency Staff & Contractor Costs,SME,788507869
BEIS,The Insolvency Service,06/02/2023,Staff Costs - Non-Perms,Projects,SmartSourcing,300043593,"26,686.80",Agency Staff & Contractor Costs,SME,788507869
BEIS,The Insolvency Service,06/02/2023,Staff Costs - Non-Perms,Projects,SmartSourcing,300043594,"16,704.00",Outside IR35 Non Perm Resource,SME,788507869
BEIS,The Insolvency Service,06/02/2023,Staff Costs - Non-Perms,Digital Technology Services,SmartSourcing,300043602,"16,968.67",Agency Staff & Contractor Costs,SME,788507869
BEIS,The Insolvency Service,06/02/2023,HR,People & Communications,Health Assurred Limited,300043601,597.30,Staff Welfare,SME,927524217
BEIS,The Insolvency Service,06/02/2023,Off-Site Storage,Official Receiver Services,Shaping Cloud Ltd,300043338,"23,150.00",Storage - OR,,997694722
BEIS,The Insolvency Service,06/02/2023,Legal - Costs of Civil Litigation Disqualifications,Legal Services Division,4 Stone Buildings,300043589,"2,200.00",Civil Litigation Disqualifications Counsel Fees,,977528365
BEIS,The Insolvency Service,06/02/2023,ICT,Projects,Microlink PC (UK) Ltd,300043603,"13,680.00",IT - Refresh,,927583587
BEIS,The Insolvency Service,07/02/2023,"Printing, Stationary, Postage & Confidential Waste",Shared Contracts,Banner Business Services Ltd,300043609,"4,171.39",Office supplies,Large,731860439
BEIS,The Insolvency Service,07/02/2023,ICT,Digital Technology Services,Bottomline Technologies,300043627,"66,662.00",IT - Run,Large,724548231
BEIS,The Insolvency Service,07/02/2023,Off-Site Storage,Official Receiver Services,Iron Mountain (Uk) Ltd,300043595,"4,266.87",Storage - HQ,Large,607937516
BEIS,The Insolvency Service,07/02/2023,"Printing, Stationary, Postage & Confidential Waste",Official Receiver Services,Allied Publicity Services (Manchester) Ltd T/A Aps Group,300043475,"5,205.55",Office supplies,Large,146494152
BEIS,The Insolvency Service,07/02/2023,HR,People & Communications,Cabinet Office,300043624,"38,136.80",Recruitment Costs,Large,888801080
BEIS,The Insolvency Service,07/02/2023,"Printing, Stationary, Postage & Confidential Waste",Shared Contracts,City Sprint Uk Ltd,300043610,"2,669.08",Courier,SME,997327364
BEIS,The Insolvency Service,07/02/2023,Estates - Property,Finance & Commercial,GPA (c/o BNP Paribas),300040980,"25,041.14",Property Maintenance - CS2,,
BEIS,The Insolvency Service,07/02/2023,Training,People & Communications,KPMG LLP,300043656,"3,480.00",Training,Large,791788859
BEIS,The Insolvency Service,07/02/2023,Training,People & Communications,KPMG LLP,300043658,"3,480.00",Training,Large,791788859
BEIS,The Insolvency Service,07/02/2023,Legal - Costs of Criminal Prosecutions and Advice,Legal Services Division,18 Red Lion Court Chambers,300043637,"2,175.00",Costs of Criminal Prosecutions and Advice,SME,766793665
BEIS,The Insolvency Service,07/02/2023,ICT,Digital Technology Services,Netcompany UK Ltd,300043560,"6,561.60",IT - Run,Large,171809009
BEIS,The Insolvency Service,07/02/2023,ICT,Digital Technology Services,Netcompany UK Ltd,300043560,"45,545.00",IT - Run,Large,171809009
BEIS,The Insolvency Service,07/02/2023,ICT,Digital Technology Services,Netcompany UK Ltd,300043597,"56,605.20",IT - Run,Large,171809009
BEIS,The Insolvency Service,07/02/2023,Staff Costs - Non-Perms,Projects,SmartSourcing,300043586,"18,568.70",Agency Staff & Contractor Costs,SME,788507869
BEIS,The Insolvency Service,07/02/2023,Staff Costs - Non-Perms,Projects,SmartSourcing,300043611,"18,984.67",Agency Staff & Contractor Costs,SME,788507869
BEIS,The Insolvency Service,07/02/2023,Off-Site Storage,Official Receiver Services,Purdie Worldwide,300043547,868.64,Storage - HQ,Large,208569880
BEIS,The Insolvency Service,07/02/2023,Off-Site Storage,Official Receiver Services,Crown Records Management,300043596,958.80,Storage - HQ,SME,902181658
BEIS,The Insolvency Service,07/02/2023,ICT,Projects,Nomensa Limited,300043598,"73,200.00",IT - Run,Large,771727411
BEIS,The Insolvency Service,07/02/2023,"Legal, Translation & Consultancy",Digital Technology Services,Nomensa Limited,300043639,"9,000.00",Consultancy,Large,771727411
BEIS,The Insolvency Service,07/02/2023,ICT,Digital Technology Services,e2e-assure Ltd,300043546,"22,823.16",IT - Run,SME,173116233
BEIS,The Insolvency Service,07/02/2023,"Printing, Stationary, Postage & Confidential Waste",Shared Contracts,PSL Print Management Ltd,300043626,"3,747.37",Printing and Reprographics,Large,448293129
BEIS,The Insolvency Service,07/02/2023,Legal - Costs of Civil Litigation Disqualifications,Legal Services Division,Kings Chambers Limited,300043638,"1,100.00",Civil Litigation Disqualifications Counsel Fees,SME,
BEIS,The Insolvency Service,07/02/2023,Other Costs,Business Service Division,I.F.F Research Ltd,300043549,"6,460.00",Customer Research and Accreditation,,238734442
BEIS,The Insolvency Service,07/02/2023,Training,Investigations & Enforcement Services,Mindflick LTD,300043625,"4,950.00",Training,,202310386
BEIS,The Insolvency Service,07/02/2023,Training,Legal Services Division,Mindflick LTD,300043625,"4,950.00",Training,,202310386
BEIS,The Insolvency Service,07/02/2023,Training,Legal Services Division,Mindflick LTD,300043625,520.00,Training,,202310386
BEIS,The Insolvency Service,08/02/2023,ICT,Digital Technology Services,Daisy Corporate Services Trading Limited,300043636,"25,447.40",IT - Run,Large,722471355
BEIS,The Insolvency Service,08/02/2023,ICT,Digital Technology Services,Ee Ltd (Air Time),300043674,676.01,Telephones - Charges,Large,771592016
BEIS,The Insolvency Service,08/02/2023,ICT,Digital Technology Services,Ee Ltd (Air Time),300043675,"18,902.23",Telephones - Charges,Large,771592016
BEIS,The Insolvency Service,08/02/2023,Training,People & Communications,KPMG LLP,300043652,"4,311.00",Training,Large,791788859
BEIS,The Insolvency Service,08/02/2023,Staff Costs - Non-Perms,Projects,SmartSourcing,300043584,"17,671.66",Agency Staff & Contractor Costs,SME,788507869
BEIS,The Insolvency Service,08/02/2023,Training,Chief Executive Office,Pendragon International Media Ltd,300043642,"3,000.00",Training,,186290972
BEIS,The Insolvency Service,08/02/2023,Legal - Costs of Criminal Prosecutions and Advice,Legal Services Division,Devereux Chambers,300043653,"9,061.98",Costs of Criminal Prosecutions and Advice,,104861334
BEIS,The Insolvency Service,09/02/2023,Legal - Outsourced Investigation,Investigations & Enforcement Services,Howes Percival,300043694,"75,425.50",Solicitors Investigations,Large,119523573
BEIS,The Insolvency Service,09/02/2023,Legal - Outsourced Investigation,Investigations & Enforcement Services,Howes Percival,300043698,"5,793.00",Solicitors Investigations,Large,119523573
BEIS,The Insolvency Service,09/02/2023,Legal - Costs of Civil Litigation Winding Up,Legal Services Division,Howes Percival,300043700,"5,628.00",Costs of Civil Litigation Winding Up,Large,119523573
BEIS,The Insolvency Service,09/02/2023,Legal - Outsourced Investigation,Investigations & Enforcement Services,Howes Percival,300043708,"4,356.00",Solicitors Investigations,Large,119523573
BEIS,The Insolvency Service,09/02/2023,Legal - Outsourced Investigation,Investigations & Enforcement Services,Burness Paull & Williamsons Solicitors,300043685,"1,199.00",Solicitors Investigations,Large,216218532
BEIS,The Insolvency Service,09/02/2023,Legal - Costs of Recovering Civil Costs Awarded,Legal Services Division,Burness Paull & Williamsons Solicitors,300043686,709.53,Recovery of Civil Proceedings Costs Awarded,Large,216218532
BEIS,The Insolvency Service,09/02/2023,Legal - Outsourced Investigation,Investigations & Enforcement Services,Burness Paull & Williamsons Solicitors,300043687,"9,431.00",Solicitors Investigations,Large,216218532
BEIS,The Insolvency Service,09/02/2023,"Printing, Stationary, Postage & Confidential Waste",Shared Contracts,Allied Publicity Services (Manchester) Ltd T/A Aps Group,300043659,"2,791.51",Printing and Reprographics,Large,146494152
BEIS,The Insolvency Service,09/02/2023,Legal - Costs of Criminal Prosecutions and Advice,Legal Services Division,St Philips Barristers,300043680,600.00,Costs of Criminal Prosecutions and Advice,SME,614053968
BEIS,The Insolvency Service,09/02/2023,Legal - Costs of Civil Litigation Disqualifications,Legal Services Division,18 St John Street Chambers,300043718,810.00,Civil Litigation Disqualifications Counsel Fees,SME,826858289
BEIS,The Insolvency Service,09/02/2023,Legal - Outsourced Investigation,Investigations & Enforcement Services,Mills & Reeve LLP,300043709,"9,544.90",Solicitors Investigations,Large,104834588
BEIS,The Insolvency Service,09/02/2023,Legal - Costs of Civil Litigation Disqualifications,Legal Services Division,9 Stone Buildings,300043684,703.29,Civil Litigation Disqualifications Counsel Fees,SME,168754953
BEIS,The Insolvency Service,09/02/2023,Staff Costs - Non-Perms,Projects,Nomensa Limited,300043599,"35,100.00",Agency Staff & Contractor Costs,Large,771727411
BEIS,The Insolvency Service,09/02/2023,ICT,Digital Technology Services,NTT DATA UK LIMITED,300043445,"14,113.27",IT - Run,Large,159334590
BEIS,The Insolvency Service,09/02/2023,Staff Costs - Non-Perms,Business Service Division,Randstad Solutions Ltd,300043651,"8,245.19",Agency Staff & Contractor Costs,Large,492435726
BEIS,The Insolvency Service,09/02/2023,Training,Legal Services Division,THE HUB EVENTS LIMITED,300043683,520.00,Training,,975903576
BEIS,The Insolvency Service,10/02/2023,Legal - Costs of Recovering Civil Costs Awarded,Legal Services Division,Womble Bond Dickinson,300043715,814.50,Recovery of Civil Proceedings Costs Awarded,Large,123392627
BEIS,The Insolvency Service,10/02/2023,Legal - Costs of Civil Litigation Disqualifications,Legal Services Division,Womble Bond Dickinson,300043764,"2,251.17",Costs of Civil Litigation Disqualifications,Large,123392627
BEIS,The Insolvency Service,10/02/2023,Legal - Costs of Civil Litigation Disqualifications,Legal Services Division,Womble Bond Dickinson,300043764,568.95,Costs of Civil Litigation Disqualifications,Large,123392627
BEIS,The Insolvency Service,10/02/2023,Legal - Costs of Recovering Civil Costs Awarded,Legal Services Division,Howes Percival,300043740,"1,117.00",Recovery of Civil Proceedings Costs Awarded,Large,119523573
BEIS,The Insolvency Service,10/02/2023,Legal - Outsourced Investigation,Investigations & Enforcement Services,Howes Percival,300043741,"3,657.48",Solicitors Investigations,Large,119523573
BEIS,The Insolvency Service,10/02/2023,Training,Investigations & Enforcement Services,KPMG,300043723,640.00,Training,Large,
BEIS,The Insolvency Service,10/02/2023,Legal - Costs of Civil Litigation Disqualifications,Legal Services Division,Burness Paull & Williamsons Solicitors,300043739,"7,347.60",Costs of Civil Litigation Disqualifications,Large,216218532
BEIS,The Insolvency Service,10/02/2023,Training,People & Communications,BPP Professional Education,300043716,"2,450.00",Training,Large,466451629
BEIS,The Insolvency Service,10/02/2023,ICT,Digital Technology Services,Experian Ltd,300043766,"1,940.56",IT - Run,Large,887133593
BEIS,The Insolvency Service,10/02/2023,ICT,Digital Technology Services,Experian Ltd,300043767,"9,783.60",IT - Run,Large,887133593
BEIS,The Insolvency Service,10/02/2023,Legal - Costs of Civil Litigation Winding Up,Legal Services Division,Grant Thornton,300043722,"5,174.84",Costs of Civil Litigation Winding Up,SME,835586102
BEIS,The Insolvency Service,10/02/2023,Legal - Costs of Criminal Prosecutions and Advice,Legal Services Division,18 Red Lion Court Chambers,300043721,"11,212.50",Costs of Criminal Prosecutions and Advice,SME,766793665
BEIS,The Insolvency Service,10/02/2023,Legal - Costs of Recovering Civil Costs Awarded,Legal Services Division,Tlt Llp,300043714,508.60,Recovery of Civil Proceedings Costs Awarded,Large,3574583240
BEIS,The Insolvency Service,10/02/2023,Staff Costs - Non-Perms,Projects,SmartSourcing,300043755,"16,464.67",Agency Staff & Contractor Costs,SME,788507869
BEIS,The Insolvency Service,10/02/2023,Legal - Costs of Civil Litigation Disqualifications,Legal Services Division,Selbourne Chambers,300043750,740.00,Civil Litigation Disqualifications Counsel Fees,SME,1036299146
BEIS,The Insolvency Service,10/02/2023,Staff Costs - Non-Perms,Investigations & Enforcement Services,Red Snapper Recruitment,300043724,"1,958.70",Agency Staff & Contractor Costs,SME,835435718
BEIS,The Insolvency Service,10/02/2023,Staff Costs - Non-Perms,Investigations & Enforcement Services,Red Snapper Recruitment,300043725,"1,958.70",Agency Staff & Contractor Costs,SME,835435718
BEIS,The Insolvency Service,10/02/2023,Staff Costs - Non-Perms,Investigations & Enforcement Services,Red Snapper Recruitment,300043726,"1,958.70",Agency Staff & Contractor Costs,SME,835435718
BEIS,The Insolvency Service,10/02/2023,Staff Costs - Non-Perms,Investigations & Enforcement Services,Red Snapper Recruitment,300043727,"1,958.70",Agency Staff & Contractor Costs,SME,835435718
BEIS,The Insolvency Service,10/02/2023,Staff Costs - Non-Perms,Investigations & Enforcement Services,Red Snapper Recruitment,300043728,"1,958.70",Agency Staff & Contractor Costs,SME,835435718
BEIS,The Insolvency Service,10/02/2023,Staff Costs - Non-Perms,Investigations & Enforcement Services,Red Snapper Recruitment,300043729,"1,958.70",Agency Staff & Contractor Costs,SME,835435718
BEIS,The Insolvency Service,10/02/2023,ICT,Digital Technology Services,Gamma Telecom Limited,300043760,"1,669.44",Telephones - Charges,Large,823820344
BEIS,The Insolvency Service,10/02/2023,Staff Costs - Non-Perms,Finance & Commercial,Spinwell Global Ltd,300043670,"3,282.00",Agency Staff & Contractor Costs,,257189569
BEIS,The Insolvency Service,10/02/2023,Legal - Costs of Civil Litigation Winding Up,Legal Services Division,Kings Chambers,300043748,770.00,Civil Litigation Winding Up Counsel Fees,,862125146
BEIS,The Insolvency Service,13/02/2023,Legal - Outsourced Investigation,Investigations & Enforcement Services,Burness Paull & Williamsons Solicitors,300043772,"4,426.00",Solicitors Investigations,Large,216218532
BEIS,The Insolvency Service,13/02/2023,Legal - Costs of Criminal Prosecutions and Advice,Legal Services Division,Police And Crime Commissioner For Hampshire,300043785,680.00,Costs of Criminal Prosecutions and Advice,Public Sector,
BEIS,The Insolvency Service,13/02/2023,Legal - Costs of Civil Litigation Winding Up,Legal Services Division,Tlt Llp,300043773,"6,580.40",Costs of Civil Litigation Winding Up,Large,3574583240
BEIS,The Insolvency Service,13/02/2023,Staff Costs - Non-Perms,Projects,SmartSourcing,300043756,"42,818.40",Agency Staff & Contractor Costs,SME,788507869
BEIS,The Insolvency Service,13/02/2023,Staff Costs - Non-Perms,Digital Technology Services,Randstad Solutions Ltd,300043649,765.00,Agency Staff & Contractor Costs,Large,492435726
BEIS,The Insolvency Service,13/02/2023,Staff Costs - Non-Perms,Business Service Division,Randstad Solutions Ltd,300043650,"6,936.02",Agency Staff & Contractor Costs,Large,492435726
BEIS,The Insolvency Service,13/02/2023,Training,Investigations & Enforcement Services,Scottish Police Authority,300043761,"6,670.85",Training,,158533589
BEIS,The Insolvency Service,14/02/2023,"Printing, Stationary, Postage & Confidential Waste",Chief Executive Office,Cision,300043608,845.40,Publications,Large,757158012
BEIS,The Insolvency Service,14/02/2023,Legal - Costs of Civil Litigation Disqualifications,Legal Services Division,Womble Bond Dickinson,300043765,"395,432.21",Costs of Civil Litigation Disqualifications,Large,123392627
BEIS,The Insolvency Service,14/02/2023,Investigation & Enforcement,Investigations & Enforcement Services,Intaforensics Ltd,300043798,"27,661.95",Case Related Costs,,900353372
BEIS,The Insolvency Service,14/02/2023,Investigation & Enforcement,Investigations & Enforcement Services,Intaforensics Ltd,300043799,"1,927.87",Case Related Costs,,900353372
BEIS,The Insolvency Service,14/02/2023,Legal - Costs of Criminal Prosecutions and Advice,Legal Services Division,5 St Andrews Hill,300043818,607.50,Costs of Criminal Prosecutions and Advice,SME,703074472
BEIS,The Insolvency Service,14/02/2023,Legal - Costs of Criminal Prosecutions and Advice,Legal Services Division,18 Red Lion Court Chambers,300043814,540.16,Costs of Criminal Prosecutions and Advice,SME,766793665
BEIS,The Insolvency Service,14/02/2023,Legal - Costs of Criminal Prosecutions and Advice,Legal Services Division,Lincoln House Chambers,300043817,"1,158.11",Costs of Criminal Prosecutions and Advice,,876676360
BEIS,The Insolvency Service,14/02/2023,Off-Site Storage,Official Receiver Services,Restore Plc (Records Management),300043784,"8,969.13",Storage - HQ,Large,843863011
BEIS,The Insolvency Service,14/02/2023,Legal - Costs of Criminal Prosecutions and Advice,Legal Services Division,Park Square Barristers,300043816,684.00,Costs of Criminal Prosecutions and Advice,SME,875308991
BEIS,The Insolvency Service,14/02/2023,Off-Site Storage,Official Receiver Services,Oasis UK Ltd,300043754,953.73,Storage - HQ,Large,931579211
BEIS,The Insolvency Service,14/02/2023,ICT,Digital Technology Services,NTT DATA UK LIMITED,300043444,"14,221.75",IT - Run,Large,159334590
BEIS,The Insolvency Service,15/02/2023,Estates - Property,Finance & Commercial,Avison Young formerly GVA (Croydon),300043844,"1,132.44",Landlord Service Charge,SME,657719590
BEIS,The Insolvency Service,15/02/2023,Estates - Property,Finance & Commercial,Avison Young formerly GVA (Croydon),300043850,"1,878.10",Landlord Service Charge,SME,657719590
BEIS,The Insolvency Service,15/02/2023,Estates - Property,Finance & Commercial,Avison Young formerly GVA (Croydon),300043853,"1,168.61",Landlord Service Charge,SME,657719590
BEIS,The Insolvency Service,15/02/2023,Training,Digital Technology Services,KPMG LLP,300043805,676.00,Training,Large,791788859
BEIS,The Insolvency Service,15/02/2023,Training,Legal Services Division,Ndi Technologies Ltd (Pnc - Secure Remote Service & Support),300043826,"2,000.00",Training,,268532731
BEIS,The Insolvency Service,15/02/2023,Other Costs,People & Communications,Edenred (UK Group) Limited,300042602,802.00,Cycle to Work Scheme (NET nil impact),,
BEIS,The Insolvency Service,15/02/2023,"Printing, Stationary, Postage & Confidential Waste",Business Service Division,Royal Mail (AddressNow Credit Top Up),300043763,"9,600.00",Postage,Large,243170002
BEIS,The Insolvency Service,15/02/2023,ICT,Digital Technology Services,Advanced 365 Limited,300043797,"116,363.28",IT - Run,Large,927547983
BEIS,The Insolvency Service,15/02/2023,Estates - Property,Finance & Commercial,Vickery Holman (Exeter),300043795,894.56,Landlord Service Charge,,52008956
BEIS,The Insolvency Service,15/02/2023,ICT,Projects,Microlink PC (UK) Ltd,300043830,"9,120.00",IT - Refresh,,927583587
BEIS,The Insolvency Service,15/02/2023,Staff Costs - Non-Perms,Shared Contracts,Talent International (UK) Ltd,300043842,"12,960.00",Agency Staff & Contractor Costs,,176415692
BEIS,The Insolvency Service,16/02/2023,Training,Chief Executive Office,KPMG LLP,300043800,626.36,Training,Large,791788859
BEIS,The Insolvency Service,16/02/2023,Training,Chief Executive Office,KPMG LLP,300043801,626.36,Training,Large,791788859
BEIS,The Insolvency Service,16/02/2023,Training,Chief Executive Office,KPMG LLP,300043802,626.36,Training,Large,791788859
BEIS,The Insolvency Service,16/02/2023,Training,Chief Executive Office,KPMG LLP,300043803,626.36,Training,Large,791788859
BEIS,The Insolvency Service,16/02/2023,Training,Chief Executive Office,KPMG LLP,300043804,626.36,Training,Large,791788859
BEIS,The Insolvency Service,16/02/2023,Training,Chief Executive Office,KPMG LLP,300043808,"1,506.00",Training,Large,791788859
BEIS,The Insolvency Service,16/02/2023,Legal - Costs of Criminal Prosecutions and Advice,Legal Services Division,5 St Andrews Hill,300043862,"1,386.00",Costs of Criminal Prosecutions and Advice,SME,703074472
BEIS,The Insolvency Service,16/02/2023,Legal - Costs of Criminal Prosecutions and Advice,Legal Services Division,Lincoln House Chambers,300043873,577.44,Costs of Criminal Prosecutions and Advice,,876676360
BEIS,The Insolvency Service,16/02/2023,Staff Costs - Non-Perms,Finance & Commercial,ALEXANDER MANN SOLUTIONS,300043838,"130,372.57",Agency Staff & Contractor Costs,Large,7444926120
BEIS,The Insolvency Service,16/02/2023,Staff Costs - Non-Perms,Finance & Commercial,ALEXANDER MANN SOLUTIONS,300043839,"158,149.91",Agency Staff & Contractor Costs,Large,7444926120
BEIS,The Insolvency Service,16/02/2023,Staff Costs - Non-Perms,Finance & Commercial,ALEXANDER MANN SOLUTIONS,300043843,"177,866.95",Agency Staff & Contractor Costs,Large,7444926120
BEIS,The Insolvency Service,16/02/2023,Staff Costs - Non-Perms,Finance & Commercial,ALEXANDER MANN SOLUTIONS,300043846,"173,207.36",Agency Staff & Contractor Costs,Large,7444926120
BEIS,The Insolvency Service,16/02/2023,Other Costs,People & Communications,Edenred (Cycle to Work Scheme),300043877,802.00,Cycle to Work Scheme (NET nil impact),,649503520
BEIS,The Insolvency Service,16/02/2023,Off-Site Storage,Official Receiver Services,Shaping Cloud Ltd,300043871,"23,150.00",Storage - OR,,997694722
BEIS,The Insolvency Service,16/02/2023,Estates - Property,Finance & Commercial,Bedford Borough Council,300043863,678.00,Rent,,198207436
BEIS,The Insolvency Service,17/02/2023,HR,People & Communications,Uksbs Shared Services Centre Ltd,300043813,"75,083.33",HR & Payroll Costs,Large,888825550
BEIS,The Insolvency Service,17/02/2023,Training,"Strategy, Policy & Analysis",KPMG LLP,300043810,"2,221.00",Training,Large,791788859
BEIS,The Insolvency Service,17/02/2023,Training,Finance & Commercial,KPMG LLP,300043812,738.00,Training,Large,791788859
BEIS,The Insolvency Service,17/02/2023,HR,People & Communications,Health Partners Ltd,300043782,"4,682.57",Staff Welfare,,806426440
BEIS,The Insolvency Service,17/02/2023,HR,People & Communications,Health Partners Ltd,300043783,"3,376.37",Staff Welfare,,806426440
BEIS,The Insolvency Service,17/02/2023,Legal - Costs of Civil Litigation Disqualifications,Legal Services Division,Selbourne Chambers,300043908,720.00,Civil Litigation Disqualifications Counsel Fees,SME,1036299146
BEIS,The Insolvency Service,17/02/2023,Legal - Costs of Civil Litigation Disqualifications,Legal Services Division,Selbourne Chambers,300043917,640.00,Civil Litigation Disqualifications Counsel Fees,SME,1036299146
BEIS,The Insolvency Service,17/02/2023,Staff Costs - Non-Perms,Digital Technology Services,Randstad Solutions Ltd,300043456,"3,060.00",Agency Staff & Contractor Costs,Large,492435726
BEIS,The Insolvency Service,20/02/2023,Legal - Outsourced Investigation,Investigations & Enforcement Services,Gowling WLG (UK) LLP,300043934,"8,357.20",Solicitors Investigations,,858698838
BEIS,The Insolvency Service,20/02/2023,Estates - Property,Finance & Commercial,Maritime & Coastguard Agency,300043969,"34,726.63",Rent,Public Sector,
BEIS,The Insolvency Service,20/02/2023,Legal - Costs of Criminal Prosecutions and Advice,Legal Services Division,7 Harrington Street Chambers,300043962,"1,181.16",Costs of Criminal Prosecutions and Advice,SME,733067446
BEIS,The Insolvency Service,20/02/2023,Legal - Costs of Civil Litigation Disqualifications,Legal Services Division,9 Stone Buildings,300043968,"1,300.00",Civil Litigation Disqualifications Counsel Fees,SME,277586642
BEIS,The Insolvency Service,20/02/2023,Legal - Costs of Civil Litigation Disqualifications,Legal Services Division,Enterprise Chambers,300043963,"1,265.00",Civil Litigation Disqualifications Counsel Fees,SME,
BEIS,The Insolvency Service,20/02/2023,Staff Costs - Non-Perms,Finance & Commercial,Spinwell Global Ltd,300043870,"3,282.00",Agency Staff & Contractor Costs,,257189569
BEIS,The Insolvency Service,21/02/2023,Legal - Outsourced Investigation,Investigations & Enforcement Services,Tlt Llp,300043924,739.20,Solicitors Investigations,Large,3574583240
BEIS,The Insolvency Service,21/02/2023,Legal - Costs of Civil Litigation Winding Up,Legal Services Division,Tlt Llp,300043931,"1,167.40",Costs of Civil Litigation Winding Up,Large,3574583240
BEIS,The Insolvency Service,22/02/2023,Training,Finance & Commercial,Kaplan Financial,300044013,"1,428.33",Training,,
BEIS,The Insolvency Service,22/02/2023,Legal - Costs of Criminal Prosecutions and Advice,Legal Services Division,St Philips Barristers,300044025,630.00,Costs of Criminal Prosecutions and Advice,SME,614053968
BEIS,The Insolvency Service,22/02/2023,ICT,Digital Technology Services,Advanced 365 Limited,300044027,"145,585.16",IT - Run,Large,927547983
BEIS,The Insolvency Service,22/02/2023,Training,Business Service Division,Ernst & Young LLP,300044016,"4,245.75",Training,Large,773831408
BEIS,The Insolvency Service,22/02/2023,Training,Legal Services Division,THE HUB EVENTS LIMITED,300044031,520.00,Training,,975903576
BEIS,The Insolvency Service,22/02/2023,Training,Legal Services Division,THE HUB EVENTS LIMITED,300044032,520.00,Training,,975903576
BEIS,The Insolvency Service,23/02/2023,Legal - Outsourced Investigation,Investigations & Enforcement Services,Gowling WLG (UK) LLP,300043933,"4,680.80",Solicitors Investigations,,858698838
BEIS,The Insolvency Service,23/02/2023,Legal - Costs of Recovering Civil Costs Awarded,Legal Services Division,Gowling WLG (UK) LLP,300043935,"10,950.70",Recovery of Civil Proceedings Costs Awarded,,858698838
BEIS,The Insolvency Service,23/02/2023,Legal - Costs of Civil Litigation Winding Up,Legal Services Division,Gowling WLG (UK) LLP,300043936,"8,640.91",Costs of Civil Litigation Winding Up,,858698838
BEIS,The Insolvency Service,23/02/2023,Legal - Outsourced Investigation,Investigations & Enforcement Services,Gowling WLG (UK) LLP,300043937,"80,981.60",Solicitors Investigations,,858698838
BEIS,The Insolvency Service,23/02/2023,Legal - Costs of Civil Litigation Disqualifications,Legal Services Division,Gowling WLG (UK) LLP,300043938,"2,390.50",Costs of Civil Litigation Disqualifications,,858698838
BEIS,The Insolvency Service,23/02/2023,Estates - Property,Finance & Commercial,Avison Young formerly GVA (Croydon),300043867,"63,909.00",Rent,SME,657719590
BEIS,The Insolvency Service,23/02/2023,Estates - Property,Finance & Commercial,Avison Young formerly GVA (Croydon),300043867,"29,450.38",Landlord Service Charge,SME,657719590
BEIS,The Insolvency Service,23/02/2023,Training,People & Communications,BPP Professional Education,300044014,"4,900.00",Training,Large,466451629
BEIS,The Insolvency Service,23/02/2023,Training,People & Communications,BPP Professional Education,300044015,"2,450.00",Training,Large,466451629
BEIS,The Insolvency Service,23/02/2023,Staff Costs - Non-Perms,Finance & Commercial,Allen Lane Limited,300044062,"16,943.28",Agency Staff & Contractor Costs,,835970985
BEIS,The Insolvency Service,23/02/2023,Legal - Costs of Criminal Prosecutions and Advice,Legal Services Division,Freeman Brown Solicitors,300044105,"2,229.76",Costs of Criminal Prosecutions and Advice,,
BEIS,The Insolvency Service,23/02/2023,Legal - Outsourced Investigation,Investigations & Enforcement Services,Tlt Llp,300043925,"1,232.20",Solicitors Investigations,Large,3574583240
BEIS,The Insolvency Service,23/02/2023,Legal - Costs of Civil Litigation Disqualifications,Legal Services Division,Tlt Llp,300043926,569.00,Costs of Civil Litigation Disqualifications,Large,3574583240
BEIS,The Insolvency Service,23/02/2023,Legal - Outsourced Investigation,Investigations & Enforcement Services,Tlt Llp,300043927,"11,658.92",Solicitors Investigations,Large,3574583240
BEIS,The Insolvency Service,23/02/2023,Legal - Outsourced Investigation,Investigations & Enforcement Services,Tlt Llp,300043928,"29,494.74",Solicitors Investigations,Large,3574583240
BEIS,The Insolvency Service,23/02/2023,Legal - Costs of Civil Litigation Disqualifications,Legal Services Division,Tlt Llp,300043930,"1,749.76",Costs of Civil Litigation Disqualifications,Large,3574583240
BEIS,The Insolvency Service,23/02/2023,Staff Costs - Non-Perms,Digital Technology Services,SmartSourcing,300044026,"5,634.00",Agency Staff & Contractor Costs,SME,788507869
BEIS,The Insolvency Service,23/02/2023,Legal - Outsourced Investigation,Investigations & Enforcement Services,Mills & Reeve LLP,300043923,"33,795.70",Solicitors Investigations,Large,104834588
BEIS,The Insolvency Service,23/02/2023,Legal - Costs of Civil Litigation Disqualifications,Legal Services Division,9 Stone Buildings,300043965,799.90,Civil Litigation Disqualifications Counsel Fees,SME,168754953
BEIS,The Insolvency Service,23/02/2023,Staff Costs - Non-Perms,Investigations & Enforcement Services,Red Snapper Recruitment,300044066,"1,958.70",Agency Staff & Contractor Costs,SME,835435718
BEIS,The Insolvency Service,23/02/2023,Staff Costs - Non-Perms,Investigations & Enforcement Services,Red Snapper Recruitment,300044067,"1,958.70",Agency Staff & Contractor Costs,SME,835435718
BEIS,The Insolvency Service,23/02/2023,Staff Costs - Non-Perms,Investigations & Enforcement Services,Red Snapper Recruitment,300044068,"1,958.70",Agency Staff & Contractor Costs,SME,835435718
BEIS,The Insolvency Service,23/02/2023,Staff Costs - Non-Perms,Investigations & Enforcement Services,Red Snapper Recruitment,300044069,"1,958.70",Agency Staff & Contractor Costs,SME,835435718
BEIS,The Insolvency Service,23/02/2023,Staff Costs - Non-Perms,Investigations & Enforcement Services,Red Snapper Recruitment,300044073,"1,566.96",Agency Staff & Contractor Costs,SME,835435718
BEIS,The Insolvency Service,23/02/2023,Staff Costs - Non-Perms,Investigations & Enforcement Services,Red Snapper Recruitment,300044074,"1,566.96",Agency Staff & Contractor Costs,SME,835435718
BEIS,The Insolvency Service,23/02/2023,Staff Costs - Non-Perms,Investigations & Enforcement Services,Red Snapper Recruitment,300044075,"1,958.70",Agency Staff & Contractor Costs,SME,835435718
BEIS,The Insolvency Service,23/02/2023,Staff Costs - Non-Perms,Investigations & Enforcement Services,Red Snapper Recruitment,300044077,"1,958.70",Agency Staff & Contractor Costs,SME,835435718
BEIS,The Insolvency Service,23/02/2023,Staff Costs - Non-Perms,Investigations & Enforcement Services,Red Snapper Recruitment,300044078,"1,958.70",Agency Staff & Contractor Costs,SME,835435718
BEIS,The Insolvency Service,23/02/2023,Staff Costs - Non-Perms,Investigations & Enforcement Services,Red Snapper Recruitment,300044079,"1,958.70",Agency Staff & Contractor Costs,SME,835435718
BEIS,The Insolvency Service,23/02/2023,Staff Costs - Non-Perms,Investigations & Enforcement Services,Red Snapper Recruitment,300044080,"1,566.96",Agency Staff & Contractor Costs,SME,835435718
BEIS,The Insolvency Service,23/02/2023,Staff Costs - Non-Perms,Investigations & Enforcement Services,Red Snapper Recruitment,300044081,"1,566.96",Agency Staff & Contractor Costs,SME,835435718
BEIS,The Insolvency Service,23/02/2023,Staff Costs - Non-Perms,Investigations & Enforcement Services,Red Snapper Recruitment,300044082,"1,958.70",Agency Staff & Contractor Costs,SME,835435718
BEIS,The Insolvency Service,23/02/2023,Staff Costs - Non-Perms,Investigations & Enforcement Services,Red Snapper Recruitment,300044083,"1,566.96",Agency Staff & Contractor Costs,SME,835435718
BEIS,The Insolvency Service,23/02/2023,Staff Costs - Non-Perms,Investigations & Enforcement Services,Red Snapper Recruitment,300044084,"1,958.70",Agency Staff & Contractor Costs,SME,835435718
BEIS,The Insolvency Service,23/02/2023,Staff Costs - Non-Perms,Investigations & Enforcement Services,Red Snapper Recruitment,300044085,"1,566.96",Agency Staff & Contractor Costs,SME,835435718
BEIS,The Insolvency Service,23/02/2023,Staff Costs - Non-Perms,Investigations & Enforcement Services,Red Snapper Recruitment,300044086,"1,958.70",Agency Staff & Contractor Costs,SME,835435718
BEIS,The Insolvency Service,23/02/2023,Staff Costs - Non-Perms,Investigations & Enforcement Services,Red Snapper Recruitment,300044087,"1,958.70",Agency Staff & Contractor Costs,SME,835435718
BEIS,The Insolvency Service,23/02/2023,Staff Costs - Non-Perms,Investigations & Enforcement Services,Red Snapper Recruitment,300044088,"1,958.70",Agency Staff & Contractor Costs,SME,835435718
BEIS,The Insolvency Service,23/02/2023,Staff Costs - Non-Perms,Investigations & Enforcement Services,Red Snapper Recruitment,300044089,"1,958.70",Agency Staff & Contractor Costs,SME,835435718
BEIS,The Insolvency Service,23/02/2023,ICT,Projects,NTT DATA UK LIMITED,300043907,"218,482.70",IT - Transform,Large,159334590
BEIS,The Insolvency Service,23/02/2023,Estates - Property,Finance & Commercial,Flexiform Business Furniture Limited,300043958,"149,265.43",Furniture,,607217951
BEIS,The Insolvency Service,24/02/2023,Other Costs,Shared Contracts,Equifax Ltd,300043998,"19,902.00",Financial Searches,Large,565629213
BEIS,The Insolvency Service,24/02/2023,ICT,Digital Technology Services,Ricoh Uk Limited,300044007,552.14,IT - Run,Large,
BEIS,The Insolvency Service,24/02/2023,ICT,Digital Technology Services,Ricoh Uk Limited,300044008,552.14,IT - Run,Large,
BEIS,The Insolvency Service,24/02/2023,ICT,Digital Technology Services,Ricoh Uk Limited,300044009,552.14,IT - Run,Large,
BEIS,The Insolvency Service,24/02/2023,Legal - Costs of Civil Litigation Disqualifications,Legal Services Division,Exchange Chambers,300044120,840.00,Civil Litigation Disqualifications Counsel Fees,SME,
BEIS,The Insolvency Service,24/02/2023,Legal - Costs of Criminal Prosecutions and Advice,Legal Services Division,Freeman Brown Solicitors,300044115,"5,597.50",Costs of Criminal Prosecutions and Advice,,
BEIS,The Insolvency Service,24/02/2023,HR,Investigations & Enforcement Services,National Crime Agency,300044116,580.00,Staff Subscriptions,Public Sector,888849824
BEIS,The Insolvency Service,24/02/2023,Legal - Costs of Criminal Prosecutions and Advice,Legal Services Division,Wace Morgan Solicitors,300044119,928.97,Costs of Criminal Prosecutions and Advice,SME,220166160
BEIS,The Insolvency Service,24/02/2023,Staff Costs - Non-Perms,Finance & Commercial,ALEXANDER MANN SOLUTIONS,300044023,"178,098.78",Agency Staff & Contractor Costs,Large,7444926120
BEIS,The Insolvency Service,24/02/2023,Legal - Costs of Civil Litigation Disqualifications,Legal Services Division,Selbourne Chambers,300044065,877.10,Civil Litigation Disqualifications Counsel Fees,SME,1036299146
BEIS,The Insolvency Service,24/02/2023,Staff Costs - Non-Perms,Investigations & Enforcement Services,Red Snapper Recruitment,300044090,"1,958.70",Agency Staff & Contractor Costs,SME,835435718
BEIS,The Insolvency Service,24/02/2023,Staff Costs - Non-Perms,Investigations & Enforcement Services,Red Snapper Recruitment,300044091,"1,958.70",Agency Staff & Contractor Costs,SME,835435718
BEIS,The Insolvency Service,24/02/2023,Staff Costs - Non-Perms,Investigations & Enforcement Services,Red Snapper Recruitment,300044092,"1,958.70",Agency Staff & Contractor Costs,SME,835435718
BEIS,The Insolvency Service,24/02/2023,Staff Costs - Non-Perms,Investigations & Enforcement Services,Red Snapper Recruitment,300044093,"1,958.70",Agency Staff & Contractor Costs,SME,835435718
BEIS,The Insolvency Service,24/02/2023,Staff Costs - Non-Perms,Investigations & Enforcement Services,Red Snapper Recruitment,300044094,"1,958.70",Agency Staff & Contractor Costs,SME,835435718
BEIS,The Insolvency Service,24/02/2023,Staff Costs - Non-Perms,Investigations & Enforcement Services,Red Snapper Recruitment,300044096,"1,958.70",Agency Staff & Contractor Costs,SME,835435718
BEIS,The Insolvency Service,24/02/2023,Staff Costs - Non-Perms,Investigations & Enforcement Services,Red Snapper Recruitment,300044097,"1,958.70",Agency Staff & Contractor Costs,SME,835435718
BEIS,The Insolvency Service,24/02/2023,Staff Costs - Non-Perms,Investigations & Enforcement Services,Red Snapper Recruitment,300044098,"1,958.70",Agency Staff & Contractor Costs,SME,835435718
BEIS,The Insolvency Service,24/02/2023,Staff Costs - Non-Perms,Investigations & Enforcement Services,Red Snapper Recruitment,300044099,"1,958.70",Agency Staff & Contractor Costs,SME,835435718
BEIS,The Insolvency Service,24/02/2023,Staff Costs - Non-Perms,Investigations & Enforcement Services,Red Snapper Recruitment,300044100,"1,958.70",Agency Staff & Contractor Costs,SME,835435718
BEIS,The Insolvency Service,24/02/2023,Staff Costs - Non-Perms,Investigations & Enforcement Services,Red Snapper Recruitment,300044101,"1,958.70",Agency Staff & Contractor Costs,SME,835435718
BEIS,The Insolvency Service,24/02/2023,Staff Costs - Non-Perms,Investigations & Enforcement Services,Red Snapper Recruitment,300044102,"1,958.70",Agency Staff & Contractor Costs,SME,835435718
BEIS,The Insolvency Service,24/02/2023,Staff Costs - Non-Perms,Investigations & Enforcement Services,Red Snapper Recruitment,300044103,"1,958.70",Agency Staff & Contractor Costs,SME,835435718
BEIS,The Insolvency Service,24/02/2023,ICT,Projects,NTT DATA UK LIMITED,300043906,"174,777.70",IT - Transform,Large,159334590
BEIS,The Insolvency Service,24/02/2023,Staff Costs - Non-Perms,Finance & Commercial,Spinwell Global Ltd,300044058,"3,282.00",Agency Staff & Contractor Costs,,257189569
BEIS,The Insolvency Service,24/02/2023,Estates - Property,Projects,Johnsons 1871 Limited,300043953,675.00,Estates Professional Services,,813052765
BEIS,The Insolvency Service,27/02/2023,Staff Costs - Non-Perms,Projects,Red Snapper Recruitment,300044070,"3,432.00",Agency Staff & Contractor Costs,SME,835435718
BEIS,The Insolvency Service,27/02/2023,Staff Costs - Non-Perms,Projects,Red Snapper Recruitment,300044071,"4,290.00",Agency Staff & Contractor Costs,SME,835435718
BEIS,The Insolvency Service,27/02/2023,Staff Costs - Non-Perms,Projects,Red Snapper Recruitment,300044072,"4,290.00",Agency Staff & Contractor Costs,SME,835435718
BEIS,The Insolvency Service,27/02/2023,Staff Costs - Non-Perms,Projects,Red Snapper Recruitment,300044076,"4,290.00",Agency Staff & Contractor Costs,SME,835435718
BEIS,The Insolvency Service,27/02/2023,Staff Costs - Non-Perms,Projects,Red Snapper Recruitment,300044095,"4,290.00",Agency Staff & Contractor Costs,SME,835435718
BEIS,The Insolvency Service,27/02/2023,Staff Costs - Non-Perms,Projects,Red Snapper Recruitment,300044104,"4,290.00",Agency Staff & Contractor Costs,SME,835435718
BEIS,The Insolvency Service,27/02/2023,Estates - Property,Finance & Commercial,Bedford Borough Council,300043921,"1,149.60",Rent,,198207436
BEIS,The Insolvency Service,27/02/2023,Estates - Property,Finance & Commercial,Bedford Borough Council,300043921,958.00,Rent,,198207436
BEIS,The Insolvency Service,28/02/2023,ICT,Digital Technology Services,Bt Telephone Payment Centre,300044136,"22,661.14",Telephones - Charges,Large,245719348
BEIS,The Insolvency Service,28/02/2023,Off-Site Storage,Shared Contracts,Iron Mountain (Uk) Ltd,300044150,"35,909.33",Storage - OR,Large,607937516
BEIS,The Insolvency Service,28/02/2023,Training,People & Communications,The Whitehall & Industry Group,300044121,"5,950.00",Training,,667832004
BEIS,The Insolvency Service,28/02/2023,Training,Finance & Commercial,KPMG LLP,300044168,"1,515.00",Training,Large,791788859
BEIS,The Insolvency Service,28/02/2023,Training,Finance & Commercial,KPMG LLP,300044175,"1,006.00",Training,Large,791788859
BEIS,The Insolvency Service,28/02/2023,Legal - Costs of Criminal Prosecutions and Advice,Legal Services Division,Lincoln House Chambers,300044158,"1,026.00",Costs of Criminal Prosecutions and Advice,,876676360
BEIS,The Insolvency Service,28/02/2023,Legal - Costs of Criminal Prosecutions and Advice,Legal Services Division,Lincoln House Chambers,300044159,981.05,Costs of Criminal Prosecutions and Advice,,876676360
BEIS,The Insolvency Service,28/02/2023,Legal - Costs of Criminal Prosecutions and Advice,Legal Services Division,Park Square Barristers,300044160,"4,942.39",Costs of Criminal Prosecutions and Advice,SME,875308991
BEIS,The Insolvency Service,28/02/2023,Staff Costs - Non-Perms,Finance & Commercial,ALEXANDER MANN SOLUTIONS,300044135,"177,745.67",Agency Staff & Contractor Costs,Large,7444926120
BEIS,The Insolvency Service,28/02/2023,Legal - Costs of Civil Litigation Disqualifications,Legal Services Division,18 St John Street Chambers,300044156,"1,122.00",Civil Litigation Disqualifications Counsel Fees,SME,826858289
BEIS,The Insolvency Service,28/02/2023,Staff Costs - Non-Perms,Projects,SAVAGE & GRAY DESIGN LIMITED,300044138,"3,990.00",Agency Staff & Contractor Costs,,762962303
BEIS,The Insolvency Service,28/02/2023,Training,People & Communications,2U GetSmarter (US) LLC,300044154,"3,960.00",Training,,
